Cogmind - Beta 16 @@@ ROGUE MODE // 2025.11.06 @ 15:07:43 Player: Xyniro Result: Destroyed by G-47 Trooper with Particle Gun Performance ------------- Evolutions (0) 0 Regions Visited (1) 200 Robots Destroyed (14) 70 Value Destroyed (219) 219 Prototype IDs (0) 0 Alien Tech Used (0) 0 Bonus (0) 0 TOTAL SCORE: 489 Bonus ------- None Cogmind --------- Core Integrity 0/250 Matter 280/300 Energy 230/250 System Corruption 0% Temperature Cool (14) Movement Treading (240) Ox1 Location -10/Materials Parts ------- > --- POWER (1) -------- Ion Engine > --- PROPULSION (2) --- Light Treads > --- UTILITY (2) ------ Large Storage Unit > --- WEAPON (2) ------- Medium Laser Datajack > --- INVENTORY (15) --- Light Ion Engine Light Ion Engine Light Ion Engine Light Treads Aluminum Leg Heat Sink Sensor Array Seismic Detector Peak State ------------ > --- POWER ------------ Light Ion Engine > --- PROPULSION ------- Aluminum Leg Aluminum Leg > --- UTILITY ---------- Large Storage Unit Improved Terrain Scanner > --- WEAPON ----------- EM Pulse Gun Medium Laser > --- INVENTORY -------- Ion Engine Light Treads Light Treads Seismic Detector Small Laser [Rating: 9] Favorites ----------- Power Light Ion Engine Engine Light Ion Engine Propulsion Aluminum Leg Treads Light Treads Leg Aluminum Leg Utility Large Storage Unit Device Improved Terrain Scanner Storage Large Storage Unit Weapon Medium Laser Energy Gun Medium Laser Special Melee Weapon Datajack Build | -11 -10 ------- Run | Yrd Mat Slots Evolved . | . . Power . | . . Propulsion . | . . Utility . | . . Weapon . | . . Parts Attached 13 | 6 7 Power 2 | 1 1 Engine 2 | 1 1 Core . | . . Reactor . | . . Propulsion 4 | 2 2 Treads 1 | . 1 Leg 3 | 2 1 Wheel . | . . Hover . | . . Flight . | . . Utility 3 | 2 1 Device 1 | 1 . Storage 2 | 1 1 Processor . | . . Hackware . | . . Protection . | . . Artifact . | . . Weapon 4 | 1 3 Energy Gun 3 | 1 2 Energy Cannon . | . . Ballistic Gun . | . . Ballistic Cannon . | . . Launcher . | . . Special Weapon . | . . Impact Weapon . | . . Slashing Weapon . | . . Piercing Weapon . | . . Special Melee Weapon 1 | . 1 Unidentified Prototypes . | . . Parts Lost 7 | . 7 Power 1 | . 1 Propulsion 3 | . 3 Utility 1 | . 1 Weapon 2 | . 2 Highest Loss Streak 3 | . 3 To Critical Strikes . | . . Average Backups 6 | 4 6 Power 1 | . 1 Propulsion 2 | 2 2 Utility 1 | . 1 Weapon . | 1 . Tool/Special . | . . Unused Backups 9 | 2 7 Power 3 | . 3 Propulsion 3 | 2 1 Utility 3 | . 3 Weapon . | . . Tool/Special . | . . Average Slot Usage (%) 89 | . 89 Engine 13 | . 13 Leg 19 | . 19 Device 13 | . 13 Storage 14 | . 14 Energy Gun 25 | . 25 Special Melee Weapon 1 | . 1 Peak Build Rating 9 | 8 9 Average Rating 7 | 4 8 On Entrance 4 | . 8 Avg Prop Armor Cover (%) . | . . Naked Turns . | . . Heaviest Build 29 | 11 29 Greatest Support 20 | 20 20 Greatest Overweight (x) 8 | . 8 Average Overweight (x) 1 | . 1 Largest Inventory Capacity 15 | 8 15 Average Capacity 14 | 6 14 Most Carried 10 | 8 10 Average Carried 6 | 4 6 Final Capacity 15 | 8 15 Final Carried 8 | 6 8 Class Distribution -------------------- 100% | Mutant Dominant Class ---------------- Mutant | -10/Materials Resources | -11 -10 ----------- Run | Yrd Mat Matter Collected 367 | 218 149 Remotely . | . . Salvage Created 328 | 22 306 Parts 30 | 3 27 Haulers Intercepted 1 | . 1 Recyclers Shooed . | . . Parts Field Recycled . | . . Retrieved Matter . | . . Parts Self-Destructed . | . . Prevented . | . . Parts Restored . | . . Kills | -11 -10 ------- Run | Yrd Mat Combat Hostiles Destroyed 9 | . 9 Guns 9 | . 9 Classes Destroyed 6 | 1 5 Tunneler 1 | 1 . Hauler 1 | . 1 Operator 1 | . 1 Watcher 2 | . 2 Swarmer 6 | . 6 Grunt 3 | . 3 Best Kill Streak 3 | 1 3 Combat Bots Only 3 | . 3 Max Kills in Single Turn 2 | 1 2 Gunslinging 1 | . 1 Exploded . | . . Melee . | . . Uniques/NPCs Destroyed . | . . Combat | -11 -10 -------- Run | Yrd Mat Hostile Shots Fired 114 | . 114 Missed 29 | . 29 Hits 85 | . 85 Projectile 85 | . 85 Damage Taken 903 | . 903 Core 260 | . 260 Absorbed by Shields . | . . Core Remaining (%) 100 | 100 . Volleys Fired 44 | 1 43 Largest 2 | 1 2 Hottest 90 | 40 90 Shots Fired 76 | 1 75 Gun 76 | 1 75 Cannon . | . . Launcher . | . . Special . | . . Kinetic . | . . Thermal 66 | . 66 Explosive . | . . Electromagnetic 10 | 1 9 Robot Hit Streak 8 | 1 8 Robot Miss Streak 5 | . 5 Penetration Max . | . . Secondary Targets 3 | . 3 Max Gunslinging Chain 1 | . 1 Shots Hit Robots 51 | 1 50 Core Hits 22 | 2 20 Critical Kills . | . . Critical Parts Destroyed . | . . Critical Strikes . | . . Melee Attacks 8 | . 8 Impact . | . . Slashing . | . . Piercing . | . . Sneak Attacks 4 | . 4 Combat Hostiles . | . . Follow-up Attacks . | . . Damage Inflicted 596 | 17 579 Guns 592 | 13 579 Cannons . | . . Explosions . | . . Melee . | . . Ramming 4 | 4 . Kinetic . | . . Thermal 537 | . 537 Explosive . | . . Electromagnetic 55 | 13 42 Impact . | . . Slashing . | . . Piercing . | . . Highest Corruption . | . . Average Corruption . | . . Corruption Purged . | . . Corruption Blocked . | . . Overload Shots . | . . Overflow Damage . | . . Projectiles . | . . Explosions . | . . Melee . | . . Knockbacks . | . . Impact . | . . Kinetic . | . . Secondary . | . . Self-Inflicted Damage . | . . Shots . | . . Rammed . | . . Targets Rammed 1 | 1 . Kicked 1 | 1 . Crushed . | . . Highest Temperature 201 | . 201 Average Temperature 55 | . 55 Received Heat Transfer 300 | . 300 Siege Activations . | . . Martial Activations . | . . Shielding Activations . | . . Robots Disrupted . | . . Combat Hostiles . | . . Robots Corrupted . | . . Combat Hostiles . | . . Parts Fried . | . . Impact Corruptions . | . . Robots Melted . | . . Combat Hostiles . | . . Parts Melted 7 | . 7 Heat Transferred 1425 | . 1425 Parts Sabotaged . | . . Parts Stolen . | . . Parts Stripped . | . . Power Chain Reactions . | . . Alert | -11 -10 ------- Run | Yrd Mat Maximum Alert Level . | . . Low Security (%) 100 | 100 100 Level 1 . | . . Level 2 . | . . Level 3 . | . . Level 4 . | . . Level 5 . | . . High Security . | . . Max Security . | . . Peak Influence 60 | 5 60 Initial . | . . Average 10 | . 11 Influence Increases 254 | 5 249 Destroy 0b10 Robot/C 180 | . 180 Destroy 0b10 Robot/NC 25 | 5 20 Destroy Leader 46 | . 46 Successful Hack 2 | . 2 Destroy Structure 1 | . 1 Influence Decreases 254 | 5 249 Time Decay 234 | 5 229 Lost Part 20 | . 20 Squads Dispatched 2 | . 2 Investigation 1 | . 1 Extermination . | . . Reinforcement 1 | . 1 Assault . | . . Garrison . | . . Intercept . | . . Searches Triggered . | . . Construction Impeded . | . . Haulers Reinforced . | . . Active Scanning Responses . | . . Cargo Convoy Interrupts . | . . Stealth | -11 -10 --------- Run | Yrd Mat Distress Signals 1 | . 1 Communications Jammed . | . . Distress Signals . | . . Times Spotted 18 | . 18 Peak Tracking Total 3 | . 3 Tactical Retreats . | . . Traps | -11 -10 ------- Run | Yrd Mat Traps Triggered 2 | . 2 Indirectly . | . . Trap Hack Attempts . | . . Triggered . | . . Disarmed . | . . Reprogrammed . | . . Reused . | . . Traps Extracted . | . . Installed . | . . Triggered . | . . Machines | -11 -10 ---------- Run | Yrd Mat Machines Disabled . | . . Max in Single Turn . | . . Machines Repaired . | . . Machines Dismantled . | . . Machines Sabotaged . | . . Overloaded Fab Kills . | . . Hacking | -11 -10 --------- Run | Yrd Mat Machines Accessed 5 | . 5 Terminals 5 | . 5 Fabricators . | . . Repair Stations . | . . Recycling Units . | . . Scanalyzers . | . . Garrison Access . | . . Total Hacks 13 | . 13 Successful 3 | . 3 Failed 10 | . 10 Catastrophic 1 | . 1 Database Lockouts . | . . Manual . | . . Terminals 13 | . 13 Fabricators . | . . Repair Stations . | . . Recycling Units . | . . Scanalyzers . | . . Garrison Access . | . . Terminal Hacks 3 | . 3 Record 1 | . 1 Investigation Status 1 | . 1 Zone Layout 1 | . 1 Fabricator Hacks . | . . Repair Station Hacks . | . . Recycling Unit Hacks . | . . Scanalyzer . | . . Garrison Access Hacks . | . . Unauthorized Hacks . | . . Terminals . | . . Fabricators . | . . Repair Stations . | . . Recycling Units . | . . Scanalyzers . | . . Garrison Access . | . . Data Cores Recovered . | . . Used . | . . Hacking Detections 5 | . 5 Full Trace Events . | . . Feedback Events . | . . Feedback Blocked . | . . Robot Schematics Acquired . | . . Robots Built . | . . Authchips . | . . Time . | . . Total Robot Build Rating . | . . Part Schematics Acquired . | . . Parts Built . | . . Authchips . | . . Time . | . . Total Part Build Rating . | . . Part Studies Acquired . | . . Parts Repaired . | . . Time . | . . Parts Recycled . | . . Recycled Matter . | . . Retrieved Matter . | . . Retrieved Components . | . . Parts Scanalyzed . | . . Part Schematics Acquired . | . . Parts Damaged . | . . Bothacking | -11 -10 ------------ Run | Yrd Mat Used RIF Installer . | . . Robots Hacked 2 | . 2 Non-combat 1 | . 1 Combat 1 | . 1 Robot Hacks Applied 4 | . 4 parse_system 2 | . 2 no_distress 1 | . 1 find_recycling 1 | . 1 Relay Couplers Released . | . . Fabnet Peak Effective % . | . . Robots Rewired . | . . Allies Hacked . | . . Hacks Repelled . | . . Allies | -11 -10 -------- Run | Yrd Mat Total Allies . | . . Largest Group . | . . Highest-Rated Group . | . . Highest-Rated Ally . | . . Total Orders . | . . Ally Attacks . | . . Total Damage . | . . Kills . | . . Allies Corrupted . | . . Allies Melted . | . . Intel | -11 -10 ------- Run | Yrd Mat Active Infowar (turns) 1123 | 7 1116 Terrain 1123 | 7 1116 Robot Analysis Total . | . . Derelict Logs Recovered . | . . Drone Launches . | . . Drone Recoveries . | . . Exploration | -11 -10 ------------- Run | Yrd Mat Turns Passed 1263 | 100 1163 Spaces Moved 503 | 67 436 Core 11 | 5 6 Treads . | . . Legs 492 | 62 430 Wheels . | . . Hover . | . . Flight . | . . Fastest Speed 50 | 50 120 Average Speed 208 | 114 222 Slowest Speed 450 | 120 450 Overloaded Moves . | . . Propulsion Burnouts . | . . Robots Hopped . | . . Potential Cave-ins . | . . Cave-ins Triggered . | . . Exploration Rate (%) 42 | 5 80 Regions Visited 1 Branch Regions . Pre-discovered Areas . | . . Known Exits Taken . | . . Unknown Exits Taken 1 | 1 . Scrap Searched . | . . Spaces Dug . | . . Terrain Destroyed . | . . Melee . | . . Projectile . | . . AOE . | . . Terrain Rammed . | . . Walls Destroyed . | . . Machines Disabled . | . . Actions | -11 -10 --------- Run | Yrd Mat Total 637 | 90 547 Wait 36 | . 36 Move 503 | 67 436 Hop . | . . Pick Up 23 | 14 9 Fast Attach . | . . Attach 12 | 6 6 Detach . | . . Swap 8 | . 8 Drop 3 | 2 1 Fire 44 | 1 43 Melee 8 | . 8 Ram . | . . Kick . | . . Crush . | . . Escape Stasis . | . . Rewire . | . . Trap . | . . Miscellaneous . | . . Route ------- -11/Scrapyard -10/Materials (discovered 3 exits: [*Mat x2] / [*Min]) History --------- Turn | Location | Event 3 | -11/Scrapyard | Discovered new exit (range 15) 101 | -11/Scrapyard | Entered Materials 306 | -10/Materials | Build established: Mutant 488 | -10/Materials | Discovered new exit (range 8) 796 | -10/Materials | Discovered new exit (range 14) 1102 | -10/Materials | Discovered new exit (range 14) 1220 | -10/Materials | Core integrity fell below 50% 1256 | -10/Materials | Core integrity fell below 20% 1264 | -10/Materials | Destroyed by G-47 Trooper with Particle Gun Last Messages --------------- U-05 Engineer works on Electrolysis Chamber. Acquired Lgt. Ion Engine. U-05 Engineer works on Electrolysis Chamber. U-05 Engineer completes Electrolysis Chamber. R-06 Scavenger collects Visual Processing Unit. Imp. Terrain Scanner destroyed. Electrolysis Chamber comes online. K-01 Serf collects debris. G-34 Mercenary heat damages Sml. Laser. Ion Engine melted. G-34 Mercenary destroyed. Switching to secondary target: G-47 Trooper. K-01 Serf cleans the Electrolysis Chamber. Sml. Laser destroyed. K-01 Serf cleans the Electrolysis Chamber. Aluminum Leg destroyed. Acquired Aluminum Leg. K-01 Serf cleans the Terminal. Map ----- +----------------------------------------------------+ | """######### #??????????????????????????????? | | ## #??????????????????????????????? | | +##### T #????????????????????????#?????? | | #??????????????????????????????? | | ##### # #??????????????????????????????? | | #???# #??? ##????????????????????????####### | | #???#! !#??????????????????????????????# | | #???##!!!!###???????#?????????????????????# "" | | ###?#######?# ??????????#?????????????### "T | | #?????????# ????#?????????????????????# | | #?#???????# #???????????????????#?????# | | #?#?????#?# ??????????????????????????# """" | | #?????????# ????????????????????????### """" | | #?????##### ??????????? ????????????#?# """" | | #?????#"""# ????? ???????????" ???#??##* | | #######"T"# +????????#??????" ????#???####### | | #?????????????? ????#??????#??? | | #??????????? ?? ?????##???#???#? | | ![ #?????? ? ??? ??????#?##???#??? | | ?????# ![ ##############/###???###??#?#???# | | ?????#// ! % ##?#???###?###??? | | ????##// #????####?##??#?# | | ? ???#/ % # ??## ? ###### | | "? ??# """ ########## #?? ## # | | ?????# """ ########## #? ##! # = | | ?? ???? "" ## @# #?? ## *# | | ?????+? ## gg # ## # ## | | ?? ???? ## #### #? ## """ # #? | | ? ???##+## ###########?# #? ## """ # #? | | "? ???????# #### ## ##+### """ + # | | ?? ??#??? # = ^ # """ # # | | ??#??? ???+ < + """ # + | | ??????????# """ "" # # # | | ??????????## """ ## ## "" #! # # | | ?????? ???## """ ## "!"|" ?# T" ###+### #? | | ??????#??#?# ##""!"|"??# "" #? | | ##########?# ########??# "" ## | | #?# """ "#?######?# #? | | T ### """ T# # =!! %#+## | | """ # """ "# # == =!! # | | """ + ## + = =!! # ! | | """ # #? ? """ #^ # | | """ # """ ##? ??""??# # "" | | # """ # ?"?? ?# = """" #="" | | # """ ##########% =! """" + "" | | ########## ! """" #[ | | ?#???#???# # | | ???#?????###+## #### | | ?????????? ##################" "#+###### # | | ????#?#? #??????#??????#??#"R"# # # "" | +----------------------------------------------------+ Best States ------------- Heat Dissipation 25 Energy Generation 10 Energy Capacity 250 Matter Stores 300 Matter Capacity 300 Sight Range 16 Terrain Scan Range 16 Terrain Scan Density 10 Evasion (%) 55 Item Schematics ----------------- None Robot Schematics ------------------ None Fabricated ------------ Nothing Repaired ---------- Nothing Studied --------- None Alien Tech Used ----------------- None Achievements -------------- Junior Dev Not Today, Chutes Challenges ------------ None Game ------ Seed PowerPartitionBeamcaster Manual? 0 Play Time 00:18:38 Cumulative 5.2 hours Start 2025.11.06 @ 14:42:59 End 2025.11.06 @ 15:07:43 Sessions 1 Manual Loads 0 Difficulty Rogue Special Mode None Game No. 5 Rogue 5 Adventurer 0 Explorer 0 Win Type - Total 0 Types 0/0/0/0/0/0/0/0/0/0 Lore% 1 Gallery% 6 Achievement% 7 Wizard Run 0 Options --------- Layout 1 ASCII 0 Keyboard 0 Movement Mouse Keybinds 0 Fullscreen 1 Font 24/Smallcaps Map View 50x35 Zoom Use 0% Tactical HUD 0 Map Filters NONE Filters NONE Steam 1 RUN: b0b254ab-f646-48e9-a64c-d715e5af2b00